fUSD/lending_fUSD_20241223
["ID","MTS","AMOUNT","RATE_DAILY","PERIOD"]
[346432728,1734975046966,-574.11368252,0.00018169,2]
[346432729,1734975046976,-151.0,0.0001817,2]
[346432730,1734975046985,-314.676055,0.0001817,2]
[346432731,1734975046994,-314.676055,0.0001817,2]
[346432732,1734975047003,-1727.253949,0.0001817,2]
[346432733,1734975047012,-1727.253949,0.0001817,2]
[346432734,1734975047021,-1880.05638055,0.00018171,2]
[346432735,1734975047031,-164.08468289,0.00018173,2]
[346432736,1734975047039,-161.8832956,0.00018173,2]
[346432737,1734975047049,-500.0,0.00018173,2]
[346432738,1734975047058,-152.92434071,0.00018173,2]
[346432739,1734975047067,-509.36867983,0.00018173,2]
[346432740,1734975047076,-4948.16807626,0.00018177,2]
[346432741,1734975047086,-151.0,0.00018179,2]
[346432742,1734975047095,-151.0,0.00018179,2]
[346432743,1734975047105,-230.647829,0.00018179,2]
[346432744,1734975047115,-151.0,0.00018179,2]
[346432745,1734975047124,-151.0,0.00018179,2]
[346432746,1734975047134,-151.0,0.00018179,2]
[346432747,1734975047144,-7500.0,0.00018179,2]
[346432748,1734975047154,-7500.0,0.00018179,2]
[346432749,1734975047163,-7500.0,0.00018179,2]
[346432750,1734975047173,-6545.15640699,0.00018179,2]
[346432751,1734975047183,-500.0,0.00018179,2]
[346432752,1734975047192,-500.0,0.00018179,2]
[346432753,1734975047202,-500.0,0.00018179,2]
[346432754,1734975047212,-500.0,0.00018179,2]
[346432755,1734975047221,-500.0,0.00018179,2]
[346432756,1734975047230,-500.0,0.00018179,2]
[346432757,1734975047239,-500.0,0.00018179,2]
[346432758,1734975047249,-500.0,0.00018179,2]
[346432759,1734975047258,-500.0,0.00018179,2]
[346432760,1734975047268,-500.0,0.00018179,2]
[346432761,1734975047277,-648.57349868,0.00018179,2]
[346432762,1734975047287,-833856.46211774,0.0001818,2]
[346432763,1734975047297,-151.0,0.0001818,2]
[346432764,1734975047306,-151.0,0.0001818,2]
[346432765,1734975047316,-151.0,0.0001818,2]
[346432766,1734975047325,-151.0,0.0001818,2]
[346432767,1734975047335,-151.0,0.0001818,2]
[346432768,1734975047344,-151.0,0.0001818,2]
[346432769,1734975047354,-158.370267,0.0001818,2]
[346432770,1734975047364,-151.0,0.0001818,2]
[346432771,1734975047373,-151.0,0.0001818,2]
[346432772,1734975047382,-151.0,0.0001818,2]
[346432773,1734975047392,-230.647829,0.0001818,2]
[346432774,1734975047401,-160.045859,0.0001818,2]
[346432775,1734975047410,-151.0,0.0001818,2]
[346432776,1734975047419,-151.0,0.0001818,2]
[346432777,1734975047429,-181.814851,0.0001818,2]
[346432778,1734975047438,-181.814851,0.0001818,2]
[346432779,1734975047447,-241.59839,0.0001818,2]
[346432780,1734975047456,-241.59839,0.0001818,2]
[346432781,1734975047465,-181.814851,0.0001818,2]
[346432782,1734975047475,-181.814851,0.0001818,2]
[346432783,1734975047484,-241.59839,0.0001818,2]
[346432784,1734975047493,-241.59839,0.0001818,2]
[346432785,1734975047502,-151.0,0.0001818,2]
[346432786,1734975047512,-151.0,0.0001818,2]
[346432787,1734975047521,-151.0,0.0001818,2]
[346432788,1734975047530,-151.0,0.0001818,2]
[346432789,1734975047539,-151.0,0.0001818,2]
[346432790,1734975047548,-151.0,0.0001818,2]
[346432791,1734975047558,-151.0,0.0001818,2]
[346432792,1734975047567,-151.0,0.0001818,2]
[346432793,1734975047576,-1384.490771,0.0001818,2]
[346432794,1734975047586,-1384.490771,0.0001818,2]
[346432795,1734975047595,-151.0,0.0001818,2]
[346432796,1734975047605,-151.0,0.0001818,2]
[346432797,1734975047614,-1384.490771,0.0001818,2]
[346432798,1734975047624,-1384.490771,0.0001818,2]
[346432799,1734975047633,-314.676055,0.0001818,2]
[346432800,1734975047642,-314.676055,0.0001818,2]
[346432801,1734975047652,-314.676055,0.0001818,2]
[346432802,1734975047661,-314.676055,0.0001818,2]
[346432803,1734975047671,-1468.9784,0.0001818,2]
[346432804,1734975047681,-1468.9784,0.0001818,2]
[346432805,1734975047690,-1727.253949,0.0001818,2]
[346432806,1734975047699,-1727.253949,0.0001818,2]
[346432807,1734975047708,-1727.253949,0.0001818,2]
[346432808,1734975047718,-1727.253949,0.0001818,2]
[346432809,1734975047727,-10000.0,0.0001818,2]
[346432810,1734975047736,-10000.0,0.0001818,2]
[346432811,1734975047745,-151.0,0.0001818,2]
[346432812,1734975047755,-191.488556,0.0001818,2]
[346432813,1734975047765,-191.488556,0.0001818,2]
[346432814,1734975047886,-150.0,0.00018189,2]
[346432815,1734975047895,-151.0,0.00018198,2]
[346432816,1734975047915,-645.59,0.00018198,2]
[346432817,1734975047928,-151.0,0.00018198,2]
[346432818,1734975047938,-151.0,0.00018198,2]
[346432819,1734975047949,-5991.52,0.00018198,2]
[346432820,1734975047959,-17129.43,0.00018198,2]
[346432821,1734975047969,-500.0,0.00018198,2]
[346432822,1734975047979,-5867.02,0.00018198,2]
[346432823,1734975047988,-1912.98,0.00018198,2]
[346432824,1734975047998,-9724.6,0.00018198,2]
[346432825,1734975048009,-6270.94,0.00018198,2]
[346432826,1734975048019,-1685.47,0.00018198,2]
[346432827,1734975048029,-14667.93,0.00018198,2]
[346432828,1734975048039,-5284.73,0.00018198,2]
[346432829,1734975048049,-12515.33,0.00018198,2]
[346432830,1734975048059,-3513.64,0.00018198,2]
[346432831,1734975048069,-3613.52,0.00018198,2]
[346432832,1734975048079,-11796.49,0.00018198,2]
[346432833,1734975048093,-1423.97,0.00018198,2]
[346432834,1734975048103,-2372.69,0.00018198,2]
[346432835,1734975048114,-3216.7,0.00018198,2]
[346432836,1734975048125,-13394.88,0.00018198,2]
[346432837,1734975048136,-5133.94,0.00018198,2]
[346432838,1734975048146,-2865.37,0.00018198,2]
[346432839,1734975048157,-3532.33,0.00018198,2]
[346432840,1734975048168,-5560.86,0.00018198,2]
[346432841,1734975048178,-2705.24,0.00018198,2]
[346432842,1734975048189,-5864.9,0.00018198,2]
[346432843,1734975048200,-10488.79,0.00018198,2]
[346432844,1734975048211,-1372.32,0.00018198,2]
[346432845,1734975048221,-11476.43,0.00018198,2]
[346432846,1734975048231,-500.0,0.00018198,2]
[346432847,1734975048242,-500.0,0.00018198,2]
[346432848,1734975048252,-55332.2,0.00018198,2]
[346432849,1734975048262,-3870.75,0.00018198,2]
[346432850,1734975048272,-7372.96,0.00018198,2]
[346432851,1734975048283,-151.0,0.00018199,2]
[346432852,1734975048293,-151.0,0.00018199,2]
[346432853,1734975048304,-151.0,0.00018199,2]
[346432854,1734975048314,-151.0,0.00018199,2]
[346432855,1734975048324,-151.0,0.00018199,2]
[346432856,1734975048336,-151.0,0.00018199,2]
[346432857,1734975048346,-151.0,0.00018199,2]
[346432858,1734975048356,-151.0,0.00018199,2]
[346432859,1734975048366,-151.0,0.00018199,2]
[346432860,1734975048376,-151.0,0.00018199,2]
[346432861,1734975048386,-151.0,0.00018199,2]
[346432862,1734975048397,-383.365117,0.00018199,2]
[346432863,1734975048407,-287.990191,0.00018199,2]
[346432864,1734975048417,-287.990191,0.00018199,2]
[346432865,1734975048427,-383.365117,0.00018199,2]
[346432866,1734975048437,-287.990191,0.00018199,2]
[346432867,1734975048446,-287.990191,0.00018199,2]
[346432868,1734975048456,-172.34885,0.00018199,2]
[346432869,1734975048467,-172.34885,0.00018199,2]
[346432870,1734975048477,-151.0,0.00018199,2]
[346432871,1734975048487,-151.0,0.00018199,2]
[346432872,1734975048497,-153.993987,0.00018199,2]
[346432873,1734975048507,-151.0,0.00018199,2]
[346432874,1734975048516,-151.0,0.00018199,2]
[346432875,1734975048526,-1591.277946,0.00018199,2]
[346432876,1734975048536,-1591.277946,0.00018199,2]
[346432877,1734975048545,-1591.277946,0.00018199,2]
[346432878,1734975048555,-1591.277946,0.00018199,2]
[346432879,1734975048565,-151.0,0.00018199,2]
[346432880,1734975048575,-151.0,0.00018199,2]
[346432881,1734975048586,-151.0,0.00018199,2]
[346432882,1734975048596,-151.0,0.00018199,2]
[346432883,1734975048606,-230.647829,0.00018199,2]
[346432884,1734975048616,-230.647829,0.00018199,2]
[346432885,1734975048626,-151.0,0.00018199,2]
[346432886,1734975048636,-151.0,0.00018199,2]
[346432887,1734975048646,-206.269276,0.00018199,2]
[346432888,1734975048656,-241.59839,0.00018199,2]
[346432889,1734975048665,-241.59839,0.00018199,2]
[346432890,1734975048675,-1468.9784,0.00018199,2]
[346432891,1734975048685,-1468.9784,0.00018199,2]
[346432892,1734975048694,-1468.9784,0.00018199,2]
[346432893,1734975048704,-1468.9784,0.00018199,2]
[346432894,1734975048713,-150.0,0.00018201,2]
[346432895,1734975048723,-150.0,0.00018206,2]
[346432896,1734975048733,-150.0,0.00018212,2]
[346432897,1734975048742,-2113193.76436552,0.00018213,2]
[346432898,1734975048752,-10000.0,0.00018213,2]
[346432899,1734975048762,-10000.0,0.00018213,2]
[346432900,1734975048771,-151.0,0.00018213,2]
[346432901,1734975048782,-191.488556,0.00018213,2]
[346432902,1734975048794,-191.488555,0.00018213,2]
[346432903,1734975048804,-1995.3251,0.00018214,2]
[346432904,1734975048814,-24896.4491,0.00018214,2]
[346432905,1734975048825,-1000.0,0.00018214,2]
[346432906,1734975048835,-986.7451,0.00018214,2]
[346432907,1734975048845,-4674.8513,0.00018214,2]
[346432908,1734975048854,-842.3602,0.00018214,2]
[346432909,1734975048866,-1000.0,0.00018214,2]
[346432910,1734975048877,-181.814851,0.00018214,2]
[346432911,1734975048887,-181.814851,0.00018214,2]
[346432912,1734975048898,-151.0,0.00018214,2]
[346432913,1734975048908,-151.0,0.00018214,2]
[346432914,1734975048919,-151.0,0.00018214,2]
[346432915,1734975048929,-26984.5997021,0.00018215,7]
[346432916,1734975048939,-181.814851,0.00018215,2]
[346432917,1734975048948,-181.814851,0.00018215,2]
[346432918,1734975048959,-151.0,0.00018215,2]
[346432919,1734975048968,-151.0,0.00018215,2]
[346432920,1734975048978,-151.0,0.00018215,2]
[346432921,1734975048988,-151.0,0.00018215,2]
[346432922,1734975048998,-151.0,0.00018215,2]
[346432923,1734975049008,-1384.490771,0.00018215,2]
[346432924,1734975049018,-1384.490771,0.00018215,2]
[346432925,1734975049028,-154.990274,0.00018215,2]
[346432926,1734975049038,-1384.490771,0.00018215,2]
[346432927,1734975049048,-1384.490771,0.00018215,2]
[346432928,1734975049059,-314.676055,0.00018215,2]
[346432929,1734975049068,-314.676055,0.00018215,2]
[346432930,1734975049078,-314.676055,0.00018215,2]
[346432931,1734975049091,-314.676055,0.00018215,2]
[346432932,1734975049101,-1727.253949,0.00018215,2]
[346432933,1734975049112,-1727.253949,0.00018215,2]
[346432934,1734975049123,-1727.253949,0.00018215,2]
[346432935,1734975049134,-1727.253949,0.00018215,2]
[346432936,1734975049145,-241.59839,0.00018216,2]
[346432937,1734975049156,-241.59839,0.00018216,2]
[346432938,1734975049167,-150.9742857,0.00018217,2]
[346432939,1734975049179,-150.0,0.00018221,2]
[346432940,1734975049189,-4948.16807626,0.00018224,2]
[346432941,1734975049200,-150.0,0.00018224,2]
[346432942,1734975049211,-150.0,0.00018229,2]
[346432943,1734975049223,-40190.90163086,0.0001823,2]
[346432944,1734975049233,-150.0,0.00018239,2]
[346432945,1734975049244,-150.0,0.00018241,2]
[346432946,1734975049255,-150.0,0.00018251,2]
[346432947,1734975049266,-150.0,0.00018252,2]
[346432948,1734975049277,-150.0,0.00018252,2]
[346432949,1734975049288,-150.0,0.00018253,2]
[346432950,1734975049298,-4948.16807626,0.0001827,2]
[346432951,1734975049309,-150.0,0.00018272,2]
[346432952,1734975049320,-150.0,0.00018284,2]
[346432953,1734975049331,-150.0,0.00018298,2]
[346432954,1734975049348,-537.6911,0.000183,2]
[346432955,1734975049359,-184.84,0.000183,2]
[346432956,1734975049370,-4347.0,0.000183,2]
[346432957,1734975049380,-150.0,0.00018306,2]
[346432958,1734975049390,-150.0,0.00018309,2]
[346432959,1734975049400,-1398.9266,0.00018312,2]
[346432960,1734975049410,-500.0,0.00018313,2]
[346432961,1734975049420,-500.0,0.00018313,2]
[346432962,1734975049430,-500.0,0.00018313,2]
[346432963,1734975049439,-500.0,0.00018313,2]
[346432964,1734975049449,-814.56,0.00018313,2]
[346432965,1734975049460,-1172.89,0.00018313,2]
[346432966,1734975049469,-500.0,0.00018313,2]
[346432967,1734975049479,-620.44,0.00018313,2]
[346432968,1734975049489,-500.0,0.00018313,2]
[346432969,1734975049499,-500.0,0.00018313,2]
[346432970,1734975049509,-500.0,0.00018313,2]
[346432971,1734975049519,-537.09,0.00018313,2]
[346432972,1734975049529,-500.0,0.00018313,2]
[346432973,1734975049538,-500.0,0.00018313,2]
[346432974,1734975049548,-500.0,0.00018313,2]
[346432975,1734975049558,-612.95,0.00018313,2]
[346432976,1734975049568,-500.0,0.00018313,2]
[346432977,1734975049577,-500.0,0.00018313,2]
[346432978,1734975049590,-500.0,0.00018313,2]
[346432979,1734975049600,-500.0,0.00018313,2]
[346432980,1734975049610,-529.27,0.00018313,2]
[346432981,1734975049620,-1320.05,0.00018313,2]
[346432982,1734975049630,-1134.32,0.00018313,2]
[346432983,1734975049640,-701.94,0.00018313,2]
[346432984,1734975049650,-501.71787192,0.00018313,2]
[346432985,1734975049659,-502.05344853,0.00018313,2]
[346432986,1734975049669,-580.9,0.00018313,2]
[346432987,1734975049678,-500.0,0.00018313,2]
[346432988,1734975049688,-1689.47,0.00018313,2]
[346432989,1734975049697,-500.0,0.00018313,2]
[346432990,1734975049706,-500.0,0.00018313,2]
[346432991,1734975049716,-500.0,0.00018313,2]
[346432992,1734975049725,-500.0,0.00018313,2]
[346432993,1734975049734,-1364.02,0.00018313,2]
[346432994,1734975049744,-573.10732797,0.00018313,2]
[346432995,1734975049753,-500.0,0.00018313,2]
[346432996,1734975049763,-500.0,0.00018313,2]
[346432997,1734975049773,-827.34,0.00018313,2]
[346432998,1734975049784,-1467.85,0.00018313,2]
[346432999,1734975049796,-500.0,0.00018313,2]
[346433000,1734975049806,-1454.85,0.00018313,2]
[346433001,1734975049815,-897.88,0.00018313,2]
[346433002,1734975049825,-500.0,0.00018313,2]
[346433003,1734975049836,-500.0,0.00018313,2]
[346433004,1734975049846,-579.05,0.00018313,2]
[346433005,1734975049856,-500.0,0.00018313,2]
[346433006,1734975049865,-500.0,0.00018313,2]
[346433007,1734975049875,-500.0,0.00018313,2]
[346433008,1734975049884,-500.0,0.00018313,2]
[346433009,1734975049894,-954.11,0.00018313,2]
[346433010,1734975049904,-500.0,0.00018313,2]
[346433011,1734975049913,-799.71,0.00018313,2]
[346433012,1734975049923,-500.0,0.00018313,2]
[346433013,1734975049932,-1503.41,0.00018313,2]
[346433014,1734975049941,-790.81,0.00018313,2]
[346433015,1734975049951,-500.0,0.00018313,2]
[346433016,1734975049960,-862.32,0.00018313,2]
[346433017,1734975049969,-500.0,0.00018313,2]
[346433018,1734975049979,-501.27730481,0.00018313,2]
[346433019,1734975049988,-500.0,0.00018313,2]
[346433020,1734975049998,-500.0,0.00018313,2]
[346433021,1734975050007,-1212.8,0.00018313,2]
[346433022,1734975050017,-500.0,0.00018313,2]
[346433023,1734975050026,-500.0,0.00018313,2]
[346433024,1734975050036,-506.63584789,0.00018313,2]
[346433025,1734975050045,-500.0,0.00018313,2]
[346433026,1734975050054,-500.0,0.00018313,2]
[346433027,1734975050064,-500.0,0.00018313,2]
[346433028,1734975050403,-798.21,0.00018313,2]
[346433029,1734975050412,-500.0,0.00018313,2]
[346433030,1734975050422,-500.0,0.00018313,2]
[346433031,1734975050431,-500.0,0.00018313,2]
[346433032,1734975050440,-500.0,0.00018313,2]
[346433033,1734975050449,-856.49,0.00018313,2]
[346433034,1734975050459,-500.0,0.00018313,2]
[346433035,1734975050468,-728.75,0.00018313,2]
[346433036,1734975050484,-650.72,0.00018313,2]
[346433037,1734975050496,-901.71,0.00018313,2]
[346433038,1734975050505,-500.0,0.00018313,2]
[346433039,1734975050514,-500.0,0.00018313,2]
[346433040,1734975050523,-781.08,0.00018313,2]
[346433041,1734975050532,-500.0,0.00018313,2]
[346433042,1734975050542,-695.3,0.00018313,2]
[346433043,1734975050551,-532.69,0.00018313,2]
[346433044,1734975050560,-1750.77,0.00018313,2]
[346433045,1734975050568,-500.0,0.00018313,2]
[346433046,1734975050577,-500.0,0.00018313,2]
[346433047,1734975050588,-500.0,0.00018313,2]
[346433048,1734975050598,-816.35,0.00018313,2]
[346433049,1734975050607,-505.60316323,0.00018313,2]
[346433050,1734975050616,-500.0,0.00018313,2]
[346433051,1734975050626,-500.0,0.00018313,2]
[346433052,1734975050635,-980.91,0.00018313,2]
[346433053,1734975050644,-501.28807021,0.00018313,2]
[346433054,1734975050654,-500.0,0.00018313,2]
[346433055,1734975050663,-537.36,0.00018313,2]
[346433056,1734975050672,-500.0,0.00018313,2]
[346433057,1734975050681,-500.0,0.00018313,2]
[346433058,1734975050691,-500.0,0.00018313,2]
[346433059,1734975050700,-500.0,0.00018313,2]
[346433060,1734975050709,-500.0,0.00018313,2]
[346433061,1734975050718,-292.37392117,0.00018313,2]
[346433062,1734975050727,-977.92,0.00018313,2]
[346433063,1734975050736,-605.09,0.00018313,2]
[346433064,1734975050745,-1219.91,0.00018313,2]
[346433065,1734975050755,-779.16,0.00018313,2]
[346433066,1734975050764,-549.84,0.00018313,2]
[346433067,1734975050773,-500.0,0.00018313,2]
[346433068,1734975050786,-500.0,0.00018313,2]
[346433069,1734975050796,-500.0,0.00018313,2]
[346433070,1734975050809,-500.0,0.00018313,2]
[346433071,1734975050819,-759.6,0.00018313,2]
[346433072,1734975050829,-957.22,0.00018313,2]
[346433073,1734975050839,-500.0,0.00018313,2]
[346433074,1734975050848,-500.0,0.00018313,2]
[346433075,1734975050858,-500.0,0.00018313,2]
[346433076,1734975050868,-500.0,0.00018313,2]
[346433077,1734975050878,-926.27,0.00018313,2]
[346433078,1734975050888,-500.0,0.00018313,2]
[346433079,1734975050897,-758.4,0.00018313,2]
[346433080,1734975050907,-500.0,0.00018313,2]
[346433081,1734975050916,-200.0,0.00018313,2]
[346433082,1734975050926,-500.0,0.00018313,2]
[346433083,1734975050935,-1859.02,0.00018313,2]
[346433084,1734975050944,-500.0,0.00018313,2]
[346433085,1734975050954,-500.0,0.00018313,2]
[346433086,1734975050963,-1052.77,0.00018313,2]
[346433087,1734975050972,-723.28,0.00018313,2]
[346433088,1734975050982,-500.0,0.00018313,2]
[346433089,1734975050991,-500.0,0.00018313,2]
[346433090,1734975051000,-243.86698981,0.00018313,2]
[346433091,1734975051009,-500.0,0.00018313,2]
[346433092,1734975051019,-643.06,0.00018313,2]
[346433093,1734975051028,-500.0,0.00018313,2]
[346433094,1734975051038,-575.38,0.00018313,2]
[346433095,1734975051047,-500.0,0.00018313,2]
[346433096,1734975051056,-500.0,0.00018313,2]
[346433097,1734975051066,-1088.35,0.00018313,2]
[346433098,1734975051075,-500.0,0.00018313,2]
[346433099,1734975051086,-500.0,0.00018313,2]
[346433100,1734975051097,-500.0,0.00018313,2]
[346433101,1734975051106,-569.52,0.00018313,2]
[346433102,1734975051116,-500.0,0.00018313,2]
[346433103,1734975051126,-500.0,0.00018313,2]
[346433104,1734975051135,-500.0,0.00018313,2]
[346433105,1734975051145,-500.0,0.00018313,2]
[346433106,1734975051154,-500.0,0.00018313,2]
[346433107,1734975051163,-500.0,0.00018313,2]
[346433108,1734975051173,-500.0,0.00018313,2]
[346433109,1734975051182,-500.0,0.00018313,2]
[346433110,1734975051192,-500.0,0.00018313,2]
[346433111,1734975051201,-1268.89,0.00018313,2]
[346433112,1734975051210,-500.0,0.00018313,2]
[346433113,1734975051219,-952.6,0.00018313,2]
[346433114,1734975051228,-500.0,0.00018313,2]
[346433115,1734975051237,-500.0,0.00018313,2]
[346433116,1734975051247,-510.1,0.00018313,2]
[346433117,1734975051256,-1009.01,0.00018313,2]
[346433118,1734975051265,-500.0,0.00018313,2]
[346433119,1734975051275,-986.62,0.00018313,2]
[346433120,1734975051284,-533.63,0.00018313,2]
[346433121,1734975051293,-1005.68,0.00018313,2]
[346433122,1734975051303,-943.91,0.00018313,2]
[346433123,1734975051313,-500.0,0.00018313,2]
[346433124,1734975051322,-633.06,0.00018313,2]
[346433125,1734975051332,-500.0,0.00018313,2]
[346433126,1734975051343,-500.0,0.00018313,2]
[346433127,1734975051352,-500.0,0.00018313,2]
[346433128,1734975051362,-1648.51,0.00018313,2]
[346433129,1734975051372,-500.0,0.00018313,2]
[346433130,1734975051381,-1915.88,0.00018313,2]
[346433131,1734975051390,-500.0,0.00018313,2]
[346433132,1734975051399,-500.0,0.00018313,2]
[346433133,1734975051408,-500.0,0.00018313,2]
[346433134,1734975051417,-539.63,0.00018313,2]
[346433135,1734975051426,-514.26588511,0.00018313,2]
[346433136,1734975051436,-500.0,0.00018313,2]
[346433137,1734975051445,-500.0,0.00018313,2]
[346433138,1734975051455,-500.0,0.00018313,2]
[346433139,1734975051464,-500.0,0.00018313,2]
[346433140,1734975051473,-500.0,0.00018313,2]
[346433141,1734975051483,-500.0,0.00018313,2]
[346433142,1734975051492,-500.0,0.00018313,2]
[346433143,1734975051502,-784.62,0.00018313,2]
[346433144,1734975051511,-1219.83,0.00018313,2]
[346433145,1734975051520,-805.07,0.00018313,2]
[346433146,1734975051529,-500.0,0.00018313,2]
[346433147,1734975051539,-500.0,0.00018313,2]
[346433148,1734975051552,-500.0,0.00018313,2]
[346433149,1734975051567,-500.0,0.00018313,2]
[346433150,1734975051577,-500.0,0.00018313,2]
[346433151,1734975051588,-500.0,0.00018313,2]
[346433152,1734975051597,-668.18,0.00018313,2]
[346433153,1734975051609,-500.0,0.00018313,2]
[346433154,1734975051618,-1380.12,0.00018313,2]
[346433155,1734975051627,-562.06,0.00018313,2]
[346433156,1734975051637,-500.0,0.00018313,2]
[346433157,1734975051646,-963.21,0.00018313,2]
[346433158,1734975051655,-545.64,0.00018313,2]
[346433159,1734975051665,-500.0,0.00018313,2]
[346433160,1734975051674,-500.0,0.00018313,2]
[346433161,1734975051684,-542.90583404,0.00018313,2]
[346433162,1734975051693,-500.0,0.00018313,2]
[346433163,1734975051703,-500.0,0.00018313,2]
[346433164,1734975051713,-868.65,0.00018313,2]
[346433165,1734975051722,-501.57,0.00018313,2]
[346433166,1734975051731,-719.27,0.00018313,2]
[346433167,1734975051740,-500.0,0.00018313,2]
[346433168,1734975051750,-500.0,0.00018313,2]
[346433169,1734975051760,-230.647829,0.00018313,2]
[346433170,1734975051770,-500.0,0.00018313,2]
[346433171,1734975051779,-871.37,0.00018313,2]
[346433172,1734975051793,-500.0,0.00018313,2]
[346433173,1734975051802,-548.01,0.00018313,2]
[346433174,1734975051812,-942.3,0.00018313,2]
[346433175,1734975051821,-629.62,0.00018313,2]
[346433176,1734975051831,-500.0,0.00018313,2]
[346433177,1734975051842,-500.0,0.00018313,2]
[346433178,1734975051851,-500.0,0.00018313,2]
[346433179,1734975051861,-2002.28,0.00018313,2]
[346433180,1734975051870,-500.0,0.00018313,2]
[346433181,1734975051879,-1282.29,0.00018313,2]
[346433182,1734975051888,-500.0,0.00018313,2]
[346433183,1734975051898,-500.0,0.00018313,2]
[346433184,1734975051907,-500.0,0.00018313,2]
[346433185,1734975051916,-1221.31,0.00018313,2]
[346433186,1734975051926,-500.0,0.00018313,2]
[346433187,1734975051935,-500.0,0.00018313,2]
[346433188,1734975051944,-1632.65,0.00018313,2]
[346433189,1734975051954,-343.29089827,0.00018313,2]
[346433190,1734975051963,-500.0,0.00018313,2]
[346433191,1734975051972,-500.0,0.00018313,2]
[346433192,1734975051981,-500.0,0.00018313,2]
[346433193,1734975051990,-500.0,0.00018313,2]
[346433194,1734975052000,-1240.9,0.00018313,2]
[346433195,1734975052009,-533.08272334,0.00018313,2]
[346433196,1734975052018,-500.0,0.00018313,2]
[346433197,1734975052027,-500.0,0.00018313,2]
[346433198,1734975052037,-500.0,0.00018313,2]
[346433199,1734975052046,-500.0,0.00018313,2]
[346433200,1734975052055,-500.0,0.00018313,2]
[346433201,1734975052064,-500.0,0.00018313,2]
[346433202,1734975052074,-705.78,0.00018313,2]
[346433203,1734975052083,-500.0,0.00018313,2]
[346433204,1734975052093,-915.47,0.00018313,2]
[346433205,1734975052103,-500.0,0.00018313,2]
[346433206,1734975052112,-500.0,0.00018313,2]
[346433207,1734975052121,-500.0,0.00018313,2]
[346433208,1734975052130,-500.0,0.00018313,2]
[346433209,1734975052140,-500.0,0.00018313,2]
[346433210,1734975052149,-500.0,0.00018313,2]
[346433211,1734975052159,-500.0,0.00018313,2]
[346433212,1734975052168,-1509.63,0.00018313,2]
[346433213,1734975052177,-500.0,0.00018313,2]
[346433214,1734975052186,-554.47,0.00018313,2]
[346433215,1734975052195,-1320.09,0.00018313,2]
[346433216,1734975052204,-1074.36,0.00018313,2]
[346433217,1734975052213,-500.0,0.00018313,2]
[346433218,1734975052223,-921.51,0.00018313,2]
[346433219,1734975052232,-990.86,0.00018313,2]
[346433220,1734975052241,-501.49481721,0.00018313,2]
[346433221,1734975052250,-500.0,0.00018313,2]
[346433222,1734975052259,-914.43,0.00018313,2]
[346433223,1734975052268,-731.22,0.00018313,2]
[346433224,1734975052277,-500.0,0.00018313,2]
[346433225,1734975052286,-500.0,0.00018313,2]
[346433226,1734975052295,-500.0,0.00018313,2]
[346433227,1734975052305,-507.71002051,0.00018313,2]